[Event "7th Washington Open 2018"]
[Site "Rockville"]
[Date "2018.08.12"]
[Round "3.2"]
[White "Popilski, Gil"]
[Black "Gabuzyan, Hovhannes"]
[Result "0-1"]
[ECO "E73"]
[WhiteElo "2491"]
[BlackElo "2556"]
[Annotator "ChessBase"]
[PlyCount "68"]
[EventDate "2018.08.11"]
[EventType "swiss"]
[EventCountry "USA"]
[SourceTitle "playchess.com"]
[Source "ChessBase"]
[SourceQuality "1"]
[TimeControl "40/5400+30:1200+30"]

1. d4 {[%emt 0:00:00]} Nf6 {[%emt 0:01:20]} 2. c4 {[%emt 0:00:00]} g6 {[%emt 0:00:05]} 3. Nc3 {[%emt 0:00:00]} Bg7 {[%emt 0:00:39]} 4. e4 {[%emt 0:00:37]} d6 {[%emt 0:00:04]} 5. Be2 {[%emt 0:03:36]} O-O {[%emt 0:00:23]} 6. Bg5 {[%emt 0:00:05]} Nbd7 {[%emt 0:01:05]} 7. Qd2 {[%emt 0:01:56]} e5 {[%emt 0:00:34]} 8. d5 {[%emt 0:00:07]} a5 {[%emt 0:00:09]} 9. Bd1 {[%emt 0:09:52]} Nc5 {[%emt 0:00:34]} 10. Bc2 {[%emt 0:00:29]} c6 {[%emt 0:00:21]} 11. Nge2 {[%emt 0:01:56]} cxd5 {[%emt 0:01:02]} 12. exd5 {[%emt 0:09:11]} Bd7 {[%emt 0:03:23]} 13. Ng3 {[%emt 0:17:37]} Qb6 {[%emt 0:01:06]} 14. Rb1 {[%emt 0:03:35]} Ng4 {[%emt 0:17:29]} 15. h3 {[%emt 0:07:38]} f6 {[%emt 0:03:57]} 16. hxg4 {[%emt 0:01:51]} fxg5 {[%emt 0:00:03]} 17. f3 {[%emt 0:03:45]} e4 {[%emt 0:00:06]} 18. Ngxe4 {[%emt 0:00:07]} Rae8 {[%emt 0:00:38]} 19. Kd1 {[%emt 0:00:27]} Rf4 {[%emt 0:05:52]} 20. Re1 {[%emt 0:05:20]} Be5 {[%emt 0:06:29]} 21. b3 {[%emt 0:07:53]} Rc8 {[%emt 0:06:30]} 22. Nxc5 {[%emt 0:03:15]} Qxc5 {[%emt 0:00:46]} 23. Ne4 {[%emt 0:00:06]} Qa3 {[%emt 0:00:33]} 24. Bd3 {[%emt 0:00:14]} a4 {[%emt 0:16:11]} 25. b4 {[%emt 0:03:12]} h5 {[%emt 0:14:12]} 26. gxh5 {[%emt 0:00:39]} g4 {[%emt 0:00:06]} 27. Bf1 {[%emt 0:10:49]} gxf3 {[%emt 0:03:00]} 28. Re3 {[%emt 0:00:05]} Bg4 {[%emt 0:00:28]} 29. Rxa3 {[%emt 0:03:24]} fxg2+ {[%emt 0:01:12]} 30. Kc2 {[%emt 0:00:48]} g1=Q {[%emt 0:00:40]} 31. Rg3 {[%emt 0:01:13]} Qh1 {[%emt 0:03:39]} 32. Bd3 {[%emt 0:01:34]} Qxe4 {[%emt 0:01:42]} 33. Bxe4 {[%emt 0:00:34]} Rxc4+ {[%emt 0:00:03]} 34. Kd3 {[%emt 0:00:52]} Rd4+ {[%emt 0:00:08]} 0-1

[Event "7th Washington Open 2018"]
[Site "Rockville"]
[Date "2018.08.12"]
[Round "3.3"]
[White "Panchanathan, Magesh Chandran"]
[Black "Macieja, Bartlomiej"]
[Result "1-0"]
[ECO "A11"]
[WhiteElo "2486"]
[BlackElo "2528"]
[Annotator "RC"]
[PlyCount "165"]
[EventDate "2018.08.11"]
[EventType "swiss"]
[EventCountry "USA"]
[SourceTitle "playchess.com"]
[Source "ChessBase"]
[SourceQuality "1"]
[TimeControl "40/5400+30:1200+30"]

1. Nf3 {[%emt 0:08:11]} d5 {[%emt 0:00:00]} 2. g3 {[%emt 0:00:41]} c6 {[%emt 0:00:00]} 3. Bg2 {[%emt 0:00:13]} Bf5 {[%emt 0:00:14]} 4. O-O {[%emt 0:01:51]} e6 {[%emt 0:00:07]} 5. d3 {[%emt 0:07:50]} Nf6 {[%emt 0:00:39]} 6. c4 {[%emt 0:01:46]} dxc4 {[%emt 0:00:11]} 7. dxc4 {[%emt 0:00:06]} Qxd1 {[%emt 0:00:03]} 8. Rxd1 {[%emt 0:00:05]} Bc2 {[%emt 0:00:06]} 9. Rf1 {[%emt 0:01:25]} a5 {[%emt 0:21:06]} 10. Nc3 {[%emt 0:02:08]} a4 {[%emt 0:00:02]} 11. Ne1 {[%emt 0:23:02]} Bg6 {[%emt 0:00:40]} 12. Nd3 {[%emt 0:00:23]} Nbd7 {[%emt 0:01:31]} 13. Be3 {[%emt 0:08:52]} Bd6 {[%emt 0:09:12]} 14. Rfd1 {[%emt 0:03:37]} Ke7 {[%emt 0:12:28]} 15. h3 {[%emt 0:00:30]} h6 {[%emt 0:07:58]} 16. a3 {[%emt 0:07:22]} Ra5 {[%emt 0:22:05]} 17. Rac1 {[%emt 0:00:20]} Rha8 {[%emt 0:03:55]} 18. Rd2 {[%emt 0:03:35]} Nc5 {[%emt 0:08:05]} 19. Bxc5 {[%emt 0:06:21]} Bxc5 {[%emt 0:00:01]} 20. Nxa4 {[%emt 0:00:19]} Bxf2+ {[%emt 0:04:47]} 21. Kxf2 {[%emt 0:00:35]} Rxa4 {[%emt 0:00:01]} 22. Nc5 {[%emt 0:00:47]} R4a7 {[%emt 0:00:02]} 23. Ke3 {[%emt 0:00:35]} Rd8 {[%emt 0:01:30]} 24. Rcd1 {[%emt 0:01:44]} Rxd2 {[%emt 0:00:02]} 25. Rxd2 {[%emt 0:00:06]} e5 {[%emt 0:01:06]} 26. g4 {[%emt 0:01:07]} b6 {[%emt 0:00:34]} 27. Nd3 {[%emt 0:04:40]} Bxd3 {[%emt 0:00:05]} 28. Rxd3 {[%emt 0:00:20]} Rc7 {[%emt 0:00:37]} 29. Rb3 {[%emt 0:01:35]} Nd7 {[%emt 0:00:01]} 30. Rb4 {[%emt 0:00:16]} Kd6 {[%emt 0:01:36]} 31. Ra4 {[%emt 0:00:32]} Nc5 {[%emt 0:02:48]} 32. Ra8 {[%emt 0:00:16]} Ne6 {[%emt 0:00:14]} 33. Be4 {[%emt 0:01:27]} Ng5 {[%emt 0:01:20]} 34. Rb8 {[%emt 0:04:13]} Nxe4 {[%emt 0:03:16]} 35. Kxe4 {[%emt 0:00:06]} Kc5 {[%emt 0:00:10]} 36. Kd3 {[%emt 0:00:19]} e4+ {[%emt 0:00:53]} 37. Kc3 {[%emt 0:01:26]} b5 {[%emt 0:00:12]} 38. Re8 {[%emt 0:00:25]} bxc4 {[%emt 0:00:51]} 39. Re5+ {[%emt 0:00:16]} Kb6 {[%emt 0:00:30]} 40. Rxe4 {[%emt 0:00:10]} Rd7 {[%emt 0:00:28]} 41. Rxc4 {[%emt 0:21:12]} Rd1 {[%emt 0:03:45]} 42. Rb4+ {[%emt 0:00:00]} Kc5 {[%emt 0:09:54]} 43. Rf4 {[%emt 0:00:00]} Rh1 {[%emt 0:02:05]} 44. Rf5+ {[%emt 0:00:00]} Kb6 {[%emt 0:01:51]} 45. Rf3 {[%emt 0:00:00]} f6 {[%emt 0:00:17]} 46. b3 {[%emt 0:00:00]} Kc5 {[%emt 0:01:40]} 47. Kd2 {[%emt 0:00:00]} Ra1 {[%emt 0:00:55]} 48. Rc3+ {[%emt 0:00:00]} Kd4 {[%emt 0:01:27]} 49. e3+ {[%emt 0:00:00]} Kd5 {[%emt 0:01:21]} 50. b4 {[%emt 0:00:00]} Ra2+ {[%emt 0:01:15]} 51. Kd3 {[%emt 0:00:00]} Kd6 {[%emt 0:00:45]} 52. e4 {[%emt 0:00:00]} Kc7 {[%emt 0:00:44]} 53. Kd4 {[%emt 0:00:55]} Rd2+ {[%emt 0:00:28]} 54. Ke3 {[%emt 0:00:31]} Ra2 {[%emt 0:00:33]} 55. Kf4 {[%emt 0:00:18]} Rf2+ {[%emt 0:00:31]} 56. Rf3 {[%emt 0:00:23]} g5+ {[%emt 0:00:27]} 57. Ke3 {[%emt 0:00:53]} Rh2 {[%emt 0:00:20]} 58. Kd4 {[%emt 0:00:14]} Rd2+ {[%emt 0:00:27]} 59. Kc4 {[%emt 0:00:32]} Rc2+ {[%emt 0:00:14]} 60. Rc3 {[%emt 0:01:06]} Re2 {[%emt 0:00:55]} 61. Kd4 {[%emt 0:01:03]} Rd2+ {[%emt 0:00:08]} 62. Rd3 {[%emt 0:00:04]} Rf2 {[%emt 0:00:40]} 63. Re3 {[%emt 0:00:32]} Kb6 {[%emt 0:00:45]} 64. a4 {[%emt 0:02:43]} Rd2+ {[%emt 0:00:27]} 65. Kc4 {[%emt 0:00:18]} Rc2+ {[%emt 0:00:18]} 66. Rc3 {[%emt 0:00:15]} Re2 {[%emt 0:00:20]} 67. a5+ {[%emt 0:00:03]} Kb7 {[%emt 0:00:13]} 68. Kd4 {[%emt 0:00:40]} Rb2 {[%emt 0:01:15]} 69. Kc5 {[%emt 0:00:15]} Re2 {[%emt 0:00:31]} 70. Rf3 {[%emt 0:04:24]} Rc2+ {[%emt 0:00:06]} 71. Kd6 {[%emt 0:00:05]} Rd2+ {[%emt 0:00:16]} 72. Ke6 {[%emt 0:00:12]} Rd4 {[%emt 0:00:05]} 73. Kxf6 {[%emt 0:01:14]} Rxe4 {[%emt 0:00:07]} 74. Kg6 {[%emt 0:03:47]} Rxb4 {[%emt 0:00:02]} 75. Kxh6 {[%emt 0:00:05]} Rb5 {[%emt 0:01:40]} 76. Rf5 {[%emt 0:00:06]} Rb3 {[%emt 0:00:18]} 77. Kxg5 {[%emt 0:00:49]} Rxh3 {[%emt 0:00:02]} 78. Kf6 {[%emt 0:00:39]} Rh6+ {[%emt 0:01:46]} 79. Kg7 {[%emt 0:00:33]} Rd6 {[%emt 0:00:35]} 80. g5 {[%emt 0:00:07]} Rd5 {[%emt 0:00:26]} 81. Kf6 {[%emt 0:00:05]} Rd6+ {[%emt 0:00:08]} 82. Kf7 {[%emt 0:00:11]} Rd7+ {[%emt 0:00:52]} 83. Ke6 {[%emt 0:00:07]} 1-0

[Event "7th Washington Open 2018"]
[Site "Rockville"]
[Date "2018.08.12"]
[Round "4.3"]
[White "Postny, Evgeny"]
[Black "Chandra, Akshat"]
[Result "1-0"]
[ECO "D38"]
[WhiteElo "2586"]
[BlackElo "2487"]
[Annotator "RC"]
[PlyCount "97"]
[EventDate "2018.08.11"]
[EventType "swiss"]
[EventCountry "USA"]
[SourceTitle "playchess.com"]
[Source "ChessBase"]
[SourceQuality "1"]
[TimeControl "40/5400+30:1200+30"]

1. Nf3 {[%emt 0:00:34]} d5 {[%emt 0:09:20]} 2. d4 {[%emt 0:00:33]} Nf6 {[%emt 0:00:05]} 3. c4 {[%emt 0:00:04]} e6 {[%emt 0:00:10]} 4. Bg5 {[%emt 0:00:36]} Bb4+ {[%emt 0:11:20]} 5. Nc3 {[%emt 0:00:17]} h6 {[%emt 0:01:13]} 6. Bxf6 {[%emt 0:00:15]} Qxf6 {[%emt 0:00:03]} 7. e3 {[%emt 0:01:30]} O-O {[%emt 0:00:52]} 8. Rc1 {[%emt 0:00:08]} dxc4 {[%emt 0:03:26]} 9. Bxc4 {[%emt 0:00:34]} c5 {[%emt 0:01:05]} 10. O-O {[%emt 0:01:00]} cxd4 {[%emt 0:03:56]} 11. Ne4 {[%emt 0:03:59]} Qe7 {[%emt 0:02:09]} 12. Nxd4 {[%emt 0:00:32]} Bd7 {[%emt 0:00:47]} 13. Qh5 {[%emt 0:08:03]} Nc6 {[%emt 0:04:27]} 14. Nb3 {[%emt 0:00:49]} f5 {[%emt 0:13:57]} 15. Nec5 {[%emt 0:04:03]} Be8 {[%emt 0:01:26]} 16. Qf3 {[%emt 0:19:34]} Bf7 {[%emt 0:03:32]} 17. Bb5 {[%emt 0:01:25]} Rac8 {[%emt 0:14:14]} 18. Nd3 {[%emt 0:23:07]} Bd6 {[%emt 0:09:47]} 19. Bxc6 {[%emt 0:02:03]} bxc6 {[%emt 0:00:05]} 20. Nbc5 {[%emt 0:06:59]} Qg5 {[%emt 0:05:39]} 21. Qe2 {[%emt 0:03:12]} e5 {[%emt 0:01:53]} 22. Nxe5 {[%emt 0:07:22]} Bxe5 {[%emt 0:01:31]} 23. f4 {[%emt 0:00:05]} Bxf4 {[%emt 0:01:13]} 24. exf4 {[%emt 0:00:18]} Qf6 {[%emt 0:00:51]} 25. Qf2 {[%emt 0:08:10]} Rfd8 {[%emt 0:01:50]} 26. Rfd1 {[%emt 0:01:22]} Rxd1+ {[%emt 0:02:34]} 27. Rxd1 {[%emt 0:00:04]} Rd8 {[%emt 0:00:28]} 28. Rxd8+ {[%emt 0:05:36]} Qxd8 {[%emt 0:00:02]} 29. h3 {[%emt 0:00:49]} Bxa2 {[%emt 0:00:53]} 30. Kh2 {[%emt 0:00:43]} Bd5 {[%emt 0:01:04]} 31. Qe3 {[%emt 0:00:21]} Kh7 {[%emt 0:04:53]} 32. Qe5 {[%emt 0:00:50]} Qf8 {[%emt 0:00:14]} 33. Nd3 {[%emt 0:00:47]} Qf7 {[%emt 0:00:22]} 34. Qe3 {[%emt 0:00:22]} Qg6 {[%emt 0:00:56]} 35. Qf2 {[%emt 0:00:07]} a5 {[%emt 0:00:33]} 36. Ne5 {[%emt 0:00:14]} Qd6 {[%emt 0:00:22]} 37. Qb6 {[%emt 0:01:18]} a4 {[%emt 0:00:45]} 38. Qd4 {[%emt 0:00:34]} a3 {[%emt 0:00:30]} 39. bxa3 {[%emt 0:00:06]} Qxa3 {[%emt 0:00:00]} 40. Qd2 {[%emt 0:00:58]} Be4 {[%emt 0:01:00]} 41. h4 {[%emt 0:09:20]} Qe7 {[%emt 0:03:21]} 42. Kg3 {[%emt 0:02:15]} c5 {[%emt 0:04:09]} 43. h5 {[%emt 0:02:19]} Qc7 {[%emt 0:07:30]} 44. Qa2 {[%emt 0:00:56]} c4 {[%emt 0:05:45]} 45. Qa6 {[%emt 0:02:55]} Bd5 {[%emt 0:00:16]} 46. Qg6+ {[%emt 0:00:14]} Kg8 {[%emt 0:00:26]} 47. Qe8+ {[%emt 0:00:06]} Kh7 {[%emt 0:00:02]} 48. Ng6 {[%emt 0:00:37]} Bg8 {[%emt 0:00:10]} 49. Ne7 {[%emt 0:00:38]} 1-0

[Event "7th Washington Open 2018"]
[Site "Rockville"]
[Date "2018.08.12"]
[Round "4.6"]
[White "Henderson de la Fuente, Lance"]
[Black "Stukopin, Andrey"]
[Result "0-1"]
[ECO "B47"]
[WhiteElo "2485"]
[BlackElo "2598"]
[Annotator "RC"]
[PlyCount "112"]
[EventDate "2018.08.11"]
[EventType "swiss"]
[EventCountry "USA"]
[SourceTitle "playchess.com"]
[Source "ChessBase"]
[SourceQuality "1"]
[TimeControl "40/5400+30:1200+30"]

1. e4 {[%emt 0:00:00]} c5 {[%emt 0:05:29]} 2. Nf3 {[%emt 0:00:00]} e6 {[%emt 0:00:07]} 3. d4 {[%emt 0:00:08]} cxd4 {[%emt 0:00:05]} 4. Nxd4 {[%emt 0:00:05]} Nc6 {[%emt 0:00:04]} 5. Nc3 {[%emt 0:00:12]} Qc7 {[%emt 0:00:05]} 6. g3 {[%emt 0:02:15]} a6 {[%emt 0:00:22]} 7. Bg2 {[%emt 0:00:09]} d6 {[%emt 0:00:33]} 8. Nxc6 {[%emt 0:02:17]} bxc6 {[%emt 0:00:26]} 9. O-O {[%emt 0:00:28]} Nf6 {[%emt 0:01:18]} 10. Re1 {[%emt 0:02:47]} e5 {[%emt 0:06:26]} 11. Na4 {[%emt 0:01:15]} Be7 {[%emt 0:07:29]} 12. c4 {[%emt 0:00:17]} O-O {[%emt 0:00:06]} 13. b3 {[%emt 0:00:59]} Bg4 {[%emt 0:04:16]} 14. Qc2 {[%emt 0:00:59]} Nd7 {[%emt 0:06:42]} 15. Be3 {[%emt 0:11:22]} a5 {[%emt 0:31:18]} 16. c5 {[%emt 0:08:59]} Nxc5 {[%emt 0:02:51]} 17. Nxc5 {[%emt 0:00:53]} dxc5 {[%emt 0:00:06]} 18. Bxc5 {[%emt 0:00:05]} Bxc5 {[%emt 0:07:01]} 19. Qxc5 {[%emt 0:00:02]} Rfd8 {[%emt 0:00:06]} 20. Rec1 {[%emt 0:02:24]} Rd2 {[%emt 0:00:37]} 21. Bf1 {[%emt 0:01:51]} Rad8 {[%emt 0:11:17]} 22. h3 {[%emt 0:03:55]} Be6 {[%emt 0:02:41]} 23. Qxc6 {[%emt 0:05:33]} Qxc6 {[%emt 0:00:08]} 24. Rxc6 {[%emt 0:00:02]} g6 {[%emt 0:03:24]} 25. Ra6 {[%emt 0:02:16]} Rc2 {[%emt 0:00:46]} 26. Rxa5 {[%emt 0:01:22]} Rdd2 {[%emt 0:00:06]} 27. Ra8+ {[%emt 0:08:20]} Kg7 {[%emt 0:00:05]} 28. a4 {[%emt 0:00:10]} Rxf2 {[%emt 0:02:52]} 29. a5 {[%emt 0:00:16]} Rf3 {[%emt 0:00:57]} 30. g4 {[%emt 0:03:24]} Rxb3 {[%emt 0:02:21]} 31. a6 {[%emt 0:00:49]} Bd7 {[%emt 0:00:52]} 32. Rd8 {[%emt 0:10:33]} Rg3+ {[%emt 0:02:58]} 33. Kh1 {[%emt 0:00:05]} Bc6 {[%emt 0:00:09]} 34. Re1 {[%emt 0:00:36]} f5 {[%emt 0:01:03]} 35. gxf5 {[%emt 0:02:53]} gxf5 {[%emt 0:00:04]} 36. Rd3 {[%emt 0:03:24]} Rxd3 {[%emt 0:01:43]} 37. Bxd3 {[%emt 0:00:02]} Rc3 {[%emt 0:00:39]} 38. Bb1 {[%emt 0:04:50]} Ra3 {[%emt 0:00:28]} 39. Kh2 {[%emt 0:03:38]} f4 {[%emt 0:00:07]} 40. Rd1 {[%emt 0:00:47]} Rxa6 {[%emt 0:00:38]} 41. Rd6 {[%emt 0:20:31]} Bb5 {[%emt 0:03:58]} 42. Rd5 {[%emt 0:00:00]} Rb6 {[%emt 0:04:21]} 43. Rxe5 {[%emt 0:00:00]} Bc4 {[%emt 0:03:59]} 44. Bc2 {[%emt 0:00:00]} Rb2 {[%emt 0:00:05]} 45. Rg5+ {[%emt 0:00:00]} Kh6 {[%emt 0:04:25]} 46. Rg2 {[%emt 0:00:00]} f3 {[%emt 0:01:08]} 47. Rf2 {[%emt 0:00:00]} Bb3 {[%emt 0:01:28]} 48. Bxb3 {[%emt 0:00:00]} Rxf2+ {[%emt 0:00:04]} 49. Kg3 {[%emt 0:00:00]} Rb2 {[%emt 0:00:13]} 50. Bc4 {[%emt 0:00:00]} f2 {[%emt 0:00:38]} 51. Kg2 {[%emt 0:02:36]} Kg5 {[%emt 0:00:43]} 52. e5 {[%emt 0:00:08]} Kf4 {[%emt 0:01:15]} 53. e6 {[%emt 0:00:20]} Ke3 {[%emt 0:00:22]} 54. e7 {[%emt 0:06:08]} Rb8 {[%emt 0:00:04]} 55. Bb5 {[%emt 0:00:35]} Rg8+ {[%emt 0:00:05]} 56. Kh2 {[%emt 0:00:06]} Kd2 {[%emt 0:00:20]} 0-1

[Event "7th Washington Open 2018"]
[Site "Rockville"]
[Date "2018.08.12"]
[Round "4.7"]
[White "Dragun, Kamil"]
[Black "Wang, Kevin"]
[Result "1/2-1/2"]
[ECO "A13"]
[WhiteElo "2594"]
[BlackElo "2414"]
[Annotator "RC"]
[PlyCount "100"]
[EventDate "2018.08.11"]
[EventType "swiss"]
[EventCountry "USA"]
[SourceTitle "playchess.com"]
[Source "ChessBase"]
[SourceQuality "1"]
[TimeControl "40/5400+30:1200+30"]

1. c4 {[%emt 0:04:42]} e6 {[%emt 0:00:00]} 2. g3 {[%emt 0:01:00]} d5 {[%emt 0:00:12]} 3. Bg2 {[%emt 0:00:16]} Nf6 {[%emt 0:00:43]} 4. Nf3 {[%emt 0:00:11]} dxc4 {[%emt 0:01:07]} 5. Qa4+ {[%emt 0:00:47]} Bd7 {[%emt 0:00:26]} 6. Qxc4 {[%emt 0:00:50]} c5 {[%emt 0:00:22]} 7. Ne5 {[%emt 0:01:14]} Qc8 {[%emt 0:00:13]} 8. O-O {[%emt 0:01:34]} Nc6 {[%emt 0:00:35]} 9. Nxd7 {[%emt 0:00:30]} Qxd7 {[%emt 0:00:17]} 10. Qa4 {[%emt 0:00:30]} Rc8 {[%emt 0:00:31]} 11. Nc3 {[%emt 0:01:36]} b6 {[%emt 0:01:58]} 12. Qd1 {[%emt 0:19:34]} Be7 {[%emt 0:02:52]} 13. b3 {[%emt 0:00:06]} O-O {[%emt 0:00:58]} 14. d3 {[%emt 0:02:16]} Rfd8 {[%emt 0:03:08]} 15. Bb2 {[%emt 0:00:37]} Ne8 {[%emt 0:03:40]} 16. Qd2 {[%emt 0:07:04]} Bf6 {[%emt 0:01:47]} 17. Rfd1 {[%emt 0:01:43]} Nd6 {[%emt 0:05:32]} 18. e3 {[%emt 0:01:31]} b5 {[%emt 0:11:40]} 19. Rac1 {[%emt 0:03:21]} a6 {[%emt 0:06:15]} 20. Ne2 {[%emt 0:09:57]} Bxb2 {[%emt 0:05:46]} 21. Qxb2 {[%emt 0:00:06]} Qa7 {[%emt 0:01:30]} 22. Nf4 {[%emt 0:05:33]} Ne7 {[%emt 0:11:34]} 23. Nh5 {[%emt 0:00:27]} Ne8 {[%emt 0:00:33]} 24. Nf4 {[%emt 0:03:23]} Nf6 {[%emt 0:01:17]} 25. Rd2 {[%emt 0:02:54]} Ned5 {[%emt 0:04:09]} 26. Ne2 {[%emt 0:04:55]} Rc7 {[%emt 0:04:02]} 27. a3 {[%emt 0:00:42]} h6 {[%emt 0:01:19]} 28. h3 {[%emt 0:00:43]} a5 {[%emt 0:01:47]} 29. e4 {[%emt 0:06:29]} Nb6 {[%emt 0:04:58]} 30. Nc3 {[%emt 0:04:42]} Qa6 {[%emt 0:01:19]} 31. e5 {[%emt 0:02:19]} Nfd5 {[%emt 0:05:21]} 32. Ne4 {[%emt 0:00:58]} Nd7 {[%emt 0:01:05]} 33. d4 {[%emt 0:02:41]} cxd4 {[%emt 0:03:26]} 34. Rxc7 {[%emt 0:00:30]} Nxc7 {[%emt 0:00:01]} 35. Qxd4 {[%emt 0:02:37]} Nd5 {[%emt 0:00:37]} 36. Rc2 {[%emt 0:03:27]} Rc8 {[%emt 0:01:56]} 37. Rxc8+ {[%emt 0:00:30]} Qxc8 {[%emt 0:00:02]} 38. Nd6 {[%emt 0:02:13]} Qc1+ {[%emt 0:06:48]} 39. Kh2 {[%emt 0:00:01]} Qc6 {[%emt 0:00:19]} 40. Qc5 {[%emt 0:00:30]} Nxc5 {[%emt 0:00:03]} 41. Bxd5 {[%emt 0:22:04]} exd5 {[%emt 0:20:02]} 42. Nxb5 {[%emt 0:00:07]} Nxb3 {[%emt 0:00:12]} 43. Kg2 {[%emt 0:00:09]} Nd2 {[%emt 0:00:00]} 44. f4 {[%emt 0:00:00]} Kf8 {[%emt 0:00:00]} 45. Kf2 {[%emt 0:00:00]} Ne4+ {[%emt 0:00:00]} 46. Kf3 {[%emt 0:00:00]} Ke7 {[%emt 0:00:05]} 47. Nd4 {[%emt 0:00:00]} a4 {[%emt 0:01:38]} 48. f5 {[%emt 0:00:00]} Nd2+ {[%emt 0:01:21]} 49. Kf4 {[%emt 0:00:00]} Nc4 {[%emt 0:00:21]} 50. Nb5 {[%emt 0:00:00]} g5+ {[%emt 0:03:53]} 1/2-1/2

[Event "7th Washington Open 2018"]
[Site "Rockville"]
[Date "2018.08.12"]
[Round "4.9"]
[White "Thavandiran, Shiyam"]
[Black "Friedel, Joshua E"]
[Result "1/2-1/2"]
[ECO "C49"]
[WhiteElo "2417"]
[BlackElo "2547"]
[Annotator "ChessBase"]
[PlyCount "149"]
[EventDate "2018.08.11"]
[EventType "swiss"]
[EventCountry "USA"]
[SourceTitle "playchess.com"]
[Source "ChessBase"]
[SourceQuality "1"]
[TimeControl "40/5400+30:1200+30"]

1. e4 {[%emt 0:00:00]} e5 {[%emt 0:03:48]} 2. Nf3 {[%emt 0:00:00]} Nc6 {[%emt 0:00:06]} 3. Nc3 {[%emt 0:00:00]} Nf6 {[%emt 0:00:03]} 4. Bb5 {[%emt 0:00:00]} Bb4 {[%emt 0:00:06]} 5. O-O {[%emt 0:00:00]} O-O {[%emt 0:00:04]} 6. d3 {[%emt 0:00:05]} Bxc3 {[%emt 0:00:05]} 7. bxc3 {[%emt 0:00:04]} d6 {[%emt 0:00:04]} 8. Bg5 {[%emt 0:00:24]} Bd7 {[%emt 0:00:08]} 9. Rb1 {[%emt 0:16:17]} a6 {[%emt 0:00:31]} 10. Bxc6 {[%emt 0:00:13]} Bxc6 {[%emt 0:00:08]} 11. Nd2 {[%emt 0:00:15]} h6 {[%emt 0:02:22]} 12. Bh4 {[%emt 0:07:02]} b5 {[%emt 0:14:18]} 13. Re1 {[%emt 0:06:48]} g5 {[%emt 0:04:43]} 14. Bg3 {[%emt 0:00:05]} Ne8 {[%emt 0:01:12]} 15. d4 {[%emt 0:09:04]} f6 {[%emt 0:04:03]} 16. Nf1 {[%emt 0:03:32]} Ng7 {[%emt 0:00:31]} 17. Qd3 {[%emt 0:02:47]} Qe8 {[%emt 0:02:49]} 18. f3 {[%emt 0:04:18]} Qf7 {[%emt 0:01:59]} 19. Ne3 {[%emt 0:01:09]} Rad8 {[%emt 0:03:06]} 20. a4 {[%emt 0:01:43]} Ra8 {[%emt 0:12:03]} 21. axb5 {[%emt 0:02:01]} Bxb5 {[%emt 0:03:44]} 22. c4 {[%emt 0:04:31]} Bd7 {[%emt 0:00:50]} 23. c3 {[%emt 0:05:17]} f5 {[%emt 0:08:20]} 24. exf5 {[%emt 0:04:08]} exd4 {[%emt 0:02:46]} 25. Qxd4 {[%emt 0:10:07]} Nxf5 {[%emt 0:02:26]} 26. Nxf5 {[%emt 0:02:49]} Bxf5 {[%emt 0:00:06]} 27. Ra1 {[%emt 0:00:16]} a5 {[%emt 0:09:03]} 28. c5 {[%emt 0:00:58]} Ra6 {[%emt 0:01:33]} 29. c4 {[%emt 0:02:37]} dxc5 {[%emt 0:03:08]} 30. Qxc5 {[%emt 0:00:14]} Be6 {[%emt 0:02:53]} 31. Rxa5 {[%emt 0:01:23]} Rxa5 {[%emt 0:01:05]} 32. Qxa5 {[%emt 0:00:07]} Bxc4 {[%emt 0:00:03]} 33. h4 {[%emt 0:04:14]} gxh4 {[%emt 0:03:09]} 34. Bxh4 {[%emt 0:00:14]} c6 {[%emt 0:02:29]} 35. Re7 {[%emt 0:06:54]} Qg6 {[%emt 0:03:06]} 36. Re4 {[%emt 0:01:19]} Be6 {[%emt 0:00:37]} 37. Qe5 {[%emt 0:05:22]} Bf5 {[%emt 0:04:15]} 38. Re3 {[%emt 0:01:15]} Bd7 {[%emt 0:05:58]} 39. Qd4 {[%emt 0:01:26]} Re8 {[%emt 0:00:54]} 40. Qc4+ {[%emt 0:00:27]} Qf7 {[%emt 0:00:25]} 41. Rxe8+ {[%emt 0:01:44]} Bxe8 {[%emt 0:00:36]} 42. Qg4+ {[%emt 0:03:24]} Qg6 {[%emt 0:01:22]} 43. Qd4 {[%emt 0:00:45]} Qf5 {[%emt 0:04:35]} 44. Be1 {[%emt 0:00:53]} c5 {[%emt 0:01:35]} 45. Qe3 {[%emt 0:00:11]} Qf8 {[%emt 0:01:53]} 46. Bc3 {[%emt 0:00:34]} Kh7 {[%emt 0:01:29]} 47. Bb2 {[%emt 0:01:27]} Bg6 {[%emt 0:01:36]} 48. Ba3 {[%emt 0:00:20]} Qe8 {[%emt 0:00:32]} 49. Qc3 {[%emt 0:01:01]} c4 {[%emt 0:00:43]} 50. Bb2 {[%emt 0:00:22]} Qg8 {[%emt 0:00:07]} 51. Kf2 {[%emt 0:01:05]} Bf7 {[%emt 0:01:03]} 52. Qf6 {[%emt 0:01:57]} Bg6 {[%emt 0:01:13]} 53. f4 {[%emt 0:08:56]} Bf7 {[%emt 0:02:42]} 54. g4 {[%emt 0:01:01]} Be6 {[%emt 0:01:04]} 55. f5 {[%emt 0:01:06]} Bf7 {[%emt 0:00:50]} 56. Qe5 {[%emt 0:01:53]} Qf8 {[%emt 0:00:22]} 57. Kg3 {[%emt 0:01:03]} Qg8 {[%emt 0:00:38]} 58. Kf2 {[%emt 0:00:43]} Qf8 {[%emt 0:00:05]} 59. Bd4 {[%emt 0:00:16]} Be8 {[%emt 0:01:56]} 60. Ke2 {[%emt 0:00:40]} Bf7 {[%emt 0:00:39]} 61. Kd1 {[%emt 0:00:29]} Be8 {[%emt 0:00:42]} 62. Ke2 {[%emt 0:00:54]} Bf7 {[%emt 0:00:05]} 63. Kf2 {[%emt 0:00:32]} Be8 {[%emt 0:00:43]} 64. Kg3 {[%emt 0:00:40]} Bf7 {[%emt 0:00:19]} 65. Qf6 {[%emt 0:00:19]} Qg8 {[%emt 0:00:24]} 66. Kf4 {[%emt 0:00:39]} Qb8+ {[%emt 0:00:22]} 67. Be5 {[%emt 0:00:08]} Qg8 {[%emt 0:00:23]} 68. Qh4 {[%emt 0:00:51]} c3 {[%emt 0:01:41]} 69. Bxc3 {[%emt 0:00:29]} Qb8+ {[%emt 0:00:16]} 70. Ke3 {[%emt 0:00:24]} Qb6+ {[%emt 0:00:35]} 71. Bd4 {[%emt 0:00:30]} Qb3+ {[%emt 0:00:04]} 72. Kf4 {[%emt 0:00:19]} Qb8+ {[%emt 0:00:13]} 73. Ke3 {[%emt 0:00:14]} Qb3+ {[%emt 0:00:05]} 74. Kf4 {[%emt 0:00:25]} Qb8+ {[%emt 0:00:07]} 75. Ke4 {[%emt 0:00:30]} 1/2-1/2